bitfinex/quotes_BTCUSD_20241111
["timestamp","ask_amount","ask_price","bid_price","bid_amount"]
[1731369167157,0.11422305,88714.0,88706.0,0.16976584]
[1731369167523,0.11422305,88714.0,88696.0,0.16976584]
[1731369167725,0.005,88708.0,88696.0,0.16976584]
[1731369167888,0.11400367,88707.0,88696.0,0.16976584]
[1731369168088,0.005,88704.0,88697.0,0.045014]
[1731369168295,0.005,88698.0,88697.0,0.045014]
[1731369168497,0.005,88698.0,88689.0,0.001703]
[1731369168498,0.11922305,88698.0,88689.0,0.001703]
[1731369168745,0.005,88692.0,88689.0,0.001703]
[1731369168945,0.11422305,88691.0,88689.0,0.001703]
[1731369169383,0.14422305,88690.0,88689.0,0.001703]
[1731369169795,0.20130314,88690.0,88689.0,0.001703]
[1731369169996,0.005,88677.0,88672.0,0.16976584]
[1731369170223,0.005,88677.0,88673.0,0.004504]
[1731369170224,0.14422305,88677.0,88673.0,0.004504]
[1731369170424,0.14422305,88677.0,88654.0,0.0017036]
[1731369170425,0.005,88667.0,88654.0,0.17146944]
[1731369170650,0.005,88664.0,88663.0,0.16976584]
[1731369170845,0.005,88661.0,88654.0,0.0017036]
[1731369171039,0.14222305,88661.0,88654.0,0.0017036]
[1731369171291,0.14422305,88661.0,88654.0,0.0017036]
[1731369171511,0.14422305,88661.0,88642.0,0.001703]
[1731369171512,0.00478044,88650.0,88642.0,0.001703]
[1731369171724,0.43505749,88647.0,88645.0,0.16976584]
[1731369171969,0.023,88668.0,88645.0,0.16976584]
[1731369172217,0.11422305,88667.0,88645.0,0.16976584]
[1731369172336,0.11422305,88667.0,88651.0,0.16976584]
[1731369172540,0.11422305,88667.0,88645.0,0.005]
[1731369172541,0.16976584,88666.0,88645.0,0.005]
[1731369172742,0.11422305,88665.0,88656.0,0.16976584]
[1731369172969,0.16976584,88663.0,88645.0,0.0844]
[1731369173168,0.11422305,88662.0,88647.0,0.16976584]
[1731369174143,0.11422305,88662.0,88646.0,0.0084624]
[1731369174144,0.11422305,88662.0,88661.0,0.16976584]
[1731369174339,0.11422305,88662.0,88647.0,0.005]
[1731369174457,0.11422305,88662.0,88650.0,0.16976584]
[1731369175324,0.11422305,88662.0,88646.0,0.0084624]
[1731369175633,0.16976584,88678.0,88646.0,0.0084624]
[1731369175634,0.11422305,88661.0,88647.0,0.16976584]
[1731369176090,0.11422305,88661.0,88646.0,0.0084624]
[1731369176714,0.11422305,88661.0,88647.0,0.16976584]
[1731369177007,0.67186007,88676.0,88660.0,0.005]
[1731369177252,0.16976584,88766.0,88670.0,0.005]
[1731369177253,0.16976584,88675.0,88670.0,0.005]
[1731369177667,0.16976584,88675.0,88659.0,0.0484]
[1731369177889,0.16976584,88685.0,88659.0,0.0484]
[1731369178094,0.16976584,88685.0,88663.0,0.005]
[1731369178309,0.16976584,88685.0,88657.0,0.05762683]
[1731369178920,0.002,88682.0,88657.0,0.05762683]
[1731369180345,0.16976584,88685.0,88657.0,0.05762683]
[1731369180925,0.16980584,88685.0,88657.0,0.05933283]
[1731369181129,0.16980584,88685.0,88658.0,0.05602578]
[1731369181330,0.16980584,88685.0,88663.0,0.005]
[1731369182183,0.78608312,88684.0,88665.0,0.16976584]
[1731369182363,0.16976584,88676.0,88657.0,0.05933283]
[1731369182562,0.29917783,88661.0,88657.0,0.001706]
[1731369182792,0.11422305,88660.0,88658.0,0.16976584]
[1731369183272,0.67186007,88675.0,88659.0,0.16976584]
[1731369183485,0.67186007,88675.0,88657.0,0.00118992]
[1731369183486,0.28398889,88674.0,88657.0,0.00118992]
[1731369183707,0.67186007,88675.0,88668.0,0.16976584]
[1731369183881,0.67186007,88673.0,88663.0,0.005]
[1731369184819,0.67186007,88673.0,88672.0,0.005]
[1731369185345,0.67186007,88684.0,88672.0,0.005]
[1731369185548,4e-05,88685.0,88678.0,0.005]
[1731369186117,4e-05,88685.0,88663.0,0.00225554]
[1731369186118,4e-05,88685.0,88684.0,0.005]
[1731369186290,4e-05,88685.0,88684.0,0.19672305]
[1731369186403,4e-05,88700.0,88692.0,0.005]
[1731369186605,0.16976584,88696.0,88692.0,0.005]
[1731369186804,0.14980584,88706.0,88692.0,0.005]
[1731369187049,0.19181188,88704.0,88689.0,0.005]
[1731369187250,0.11422305,88703.0,88685.0,0.17476584]
[1731369187672,0.11422305,88703.0,88685.0,0.16976584]
[1731369187875,0.19181188,88695.0,88676.0,0.16976584]
[1731369188078,0.11422305,88694.0,88686.0,0.16976584]
[1731369188291,0.11422305,88694.0,88676.0,0.16976584]
[1731369189076,0.11422305,88694.0,88680.0,0.005]
[1731369189247,0.11422305,88694.0,88672.0,0.0775]
[1731369189248,0.16976584,88688.0,88673.0,0.005]
[1731369189447,0.11422305,88687.0,88676.0,0.16976584]
[1731369190282,0.11422305,88687.0,88673.0,0.005]
[1731369191507,0.11422305,88687.0,88669.0,0.005]
[1731369191709,0.11422305,88687.0,88676.0,0.16976584]
[1731369191889,0.11422305,88687.0,88669.0,0.005]
[1731369192093,0.11422305,88687.0,88659.0,0.1253]
[1731369192094,0.11422305,88687.0,88665.0,0.005]
[1731369192351,0.11422305,88687.0,88669.0,0.005]
[1731369192931,0.11507635,88687.0,88669.0,0.005]
[1731369193338,0.16976584,88683.0,88665.0,0.0017066]
[1731369193677,0.11422305,88682.0,88670.0,0.16976584]
[1731369194094,0.0008533,88687.0,88673.0,0.005]
[1731369194309,0.11422305,88686.0,88673.0,0.005]
[1731369196359,0.0008533,88687.0,88681.0,0.005]
[1731369196936,0.002,88708.0,88685.0,0.16976584]
[1731369197139,0.16976584,88702.0,88681.0,0.005]
[1731369197350,0.11422305,88701.0,88685.0,0.16976584]
[1731369197887,0.11422305,88701.0,88676.0,0.005]
[1731369198044,0.11422305,88701.0,88683.0,0.16976584]
[1731369199074,0.001,88692.0,88670.0,0.16976584]
[1731369199225,0.78608312,88691.0,88679.0,0.16976584]
[1731369199431,0.11422305,88685.0,88670.0,0.16976584]
[1731369199632,0.002,88681.0,88671.0,0.16976584]
[1731369199858,0.30143342,88675.0,88665.0,0.0017066]
[1731369200058,0.30143342,88675.0,88668.0,0.16976584]
[1731369200267,0.002,88667.0,88665.0,0.0017066]
[1731369200425,0.78608312,88666.0,88665.0,0.0017066]
[1731369201012,0.002,88658.0,88657.0,0.00118992]
[1731369201122,0.78808312,88658.0,88657.0,0.00118992]
[1731369201335,0.11622305,88658.0,88657.0,0.00118992]
[1731369201547,0.83748312,88658.0,88657.0,0.00118992]
[1731369201815,0.16562305,88658.0,88657.0,0.00118992]
[1731369202271,0.17062305,88658.0,88657.0,0.00118992]
[1731369202472,0.002,88648.0,88647.0,0.16976584]
[1731369202801,0.11622305,88648.0,88647.0,0.16976584]
[1731369202944,0.002,88647.0,88642.0,0.001703]
[1731369203153,0.11622305,88647.0,88642.0,0.001703]
[1731369203533,0.11422305,88647.0,88642.0,0.001703]
[1731369203730,0.13134536,88647.0,88646.0,0.4466657]
[1731369203933,0.005,88643.0,88642.0,0.001703]
[1731369204121,0.005,88631.0,88629.0,0.17146984]
[1731369204324,0.11422305,88630.0,88629.0,0.17146984]
[1731369204919,0.11622305,88630.0,88629.0,0.001704]
[1731369205113,0.11422305,88630.0,88629.0,0.001704]
[1731369211814,0.78608312,88630.0,88629.0,0.001704]
[1731369212193,0.97823684,88630.0,88629.0,0.001704]
[1731369212651,0.97823684,88630.0,88629.0,0.01003489]
[1731369212785,0.98023684,88630.0,88629.0,0.01003489]
[1731369212988,0.97823684,88630.0,88629.0,0.01003489]
[1731369213665,1.05466503,88630.0,88629.0,0.001704]
[1731369213857,0.97823684,88630.0,88629.0,0.0100367]
[1731369214015,0.66182337,88623.0,88617.0,0.001704]
[1731369214220,0.30837677,88622.0,88621.0,0.16976584]
[1731369214486,0.30837677,88622.0,88617.0,0.001704]
[1731369214487,0.30637677,88622.0,88617.0,0.001704]
[1731369215185,0.11422305,88622.0,88617.0,0.001704]
[1731369216417,0.11400345,88622.0,88617.0,0.001704]
[1731369217738,0.66182337,88621.0,88617.0,0.001704]
[1731369217945,0.11422305,88620.0,88617.0,0.001704]
[1731369219480,0.31310631,88620.0,88617.0,0.001704]
[1731369219684,0.11422305,88620.0,88617.0,0.001704]
[1731369220317,0.11422305,88618.0,88617.0,0.001704]
[1731369223756,0.77604642,88618.0,88617.0,0.001704]
[1731369229968,0.77804642,88618.0,88617.0,0.001704]
[1731369230180,0.77604642,88618.0,88617.0,0.001704]
[1731369230375,0.87306643,88618.0,88617.0,0.001704]
[1731369231340,0.87506643,88618.0,88617.0,0.001704]
[1731369231555,0.002,88609.0,88598.0,0.16976584]
[1731369231791,0.19215372,88599.0,88598.0,0.16976584]
[1731369231989,0.19215372,88599.0,88588.0,0.16976584]
[1731369232731,0.002,88596.0,88588.0,0.16976584]
[1731369232932,0.76917222,88596.0,88580.0,0.0803]
[1731369233118,0.76917222,88596.0,88582.0,0.0001264]
[1731369233119,0.19215372,88588.0,88582.0,0.0001264]
[1731369233322,0.76917222,88596.0,88582.0,0.0001264]
[1731369233323,0.76917222,88587.0,88582.0,0.0001264]
[1731369233492,0.75810727,88587.0,88582.0,0.0001264]
[1731369234283,0.64388422,88586.0,88582.0,0.0001264]
[1731369234503,0.75810727,88585.0,88582.0,0.0001264]
[1731369234711,0.64388422,88584.0,88582.0,0.0001264]
[1731369235086,0.75810727,88583.0,88582.0,0.0001264]
[1731369236063,0.11422305,88583.0,88582.0,0.0001264]
[1731369236654,0.10193451,88583.0,88582.0,0.0001264]
[1731369236910,0.10149677,88583.0,88582.0,0.0001264]
[1731369237061,0.16976584,88593.0,88582.0,0.0001264]
[1731369237264,0.11422305,88592.0,88582.0,0.0001264]
[1731369237514,0.75810727,88592.0,88582.0,0.0001264]
[1731369237815,0.13185404,88586.0,88582.0,0.0001264]
[1731369237935,0.11422305,88585.0,88582.0,0.0001264]
[1731369238781,0.75810727,88584.0,88582.0,0.0001264]
[1731369239024,0.75810727,88583.0,88582.0,0.0001264]
[1731369239189,0.11422305,88583.0,88582.0,0.0001264]
[1731369239397,0.75810727,88583.0,88582.0,0.0001264]
[1731369239762,0.13185404,88572.0,88552.0,0.16976584]
[1731369240024,0.002,88562.0,88552.0,0.16976584]
[1731369240208,0.12122305,88562.0,88552.0,0.16976584]
[1731369240438,0.002,88544.0,88539.0,0.0034624]
[1731369240656,0.11422305,88544.0,88539.0,0.0034624]
[1731369240824,0.11222305,88544.0,88539.0,0.0034624]
[1731369242061,0.19247451,88543.0,88539.0,0.0034624]
[1731369242266,0.11422305,88541.0,88539.0,0.0034624]
[1731369243931,0.11622305,88541.0,88539.0,0.0034624]
[1731369244118,0.19247451,88529.0,88528.0,0.0017104]
[1731369244343,0.30669756,88529.0,88528.0,0.0017104]
[1731369245121,0.37064857,88529.0,88528.0,0.0017104]
[1731369245535,0.37264857,88529.0,88528.0,0.0017104]
[1731369246058,0.37064857,88529.0,88528.0,0.0017104]
[1731369246261,0.37264857,88529.0,88528.0,0.0017104]
[1731369246406,0.17795439,88529.0,88528.0,0.0017104]
[1731369246815,0.3704289,88529.0,88528.0,0.0017104]
[1731369247315,0.64046302,88520.0,88508.0,0.16976584]
[1731369247684,0.75468607,88519.0,88517.0,0.16976584]
[1731369247812,0.75468607,88519.0,88508.0,0.16976584]
[1731369248005,0.75468607,88519.0,88496.0,0.005]
[1731369248472,0.16976584,88518.0,88499.0,0.005]
[1731369248673,0.11422305,88517.0,88499.0,0.005]
[1731369248956,0.14876726,88517.0,88484.0,0.005]
[1731369249233,0.14876726,88517.0,88503.0,0.0034624]
[1731369249234,0.11622305,88504.0,88503.0,0.0034624]
[1731369249425,0.007,88494.0,88469.0,0.16976584]
[1731369249551,0.005,88485.0,88469.0,0.16976584]
[1731369249752,0.005,88485.0,88468.0,0.0034624]
[1731369249753,0.19947451,88477.0,88470.0,0.16976584]
[1731369249980,0.07041884,88477.0,88468.0,0.0034624]
[1731369250420,0.29422498,88477.0,88468.0,0.0034624]
[1731369250637,0.18464189,88477.0,88468.0,0.0034624]
[1731369250997,0.18264189,88477.0,88468.0,0.0034624]
[1731369251190,0.17764189,88477.0,88468.0,0.0034624]
[1731369251628,0.06341884,88477.0,88476.0,0.07927]
[1731369251757,0.05744988,88477.0,88476.0,0.07927]
[1731369252146,0.17167293,88477.0,88476.0,0.07927]
[1731369252353,0.64046302,88506.0,88484.0,0.005]
[1731369252553,0.15852531,88500.0,88496.0,0.005]
[1731369252797,0.11422305,88499.0,88491.0,0.0485]
[1731369252994,0.11422305,88499.0,88476.0,0.08427]
[1731369252995,0.11422305,88499.0,88476.0,0.03777]
[1731369253197,0.11422305,88499.0,88477.0,0.023]
[1731369254138,0.16976584,88491.0,88477.0,0.023]
[1731369254390,0.16976584,88482.0,88476.0,0.03277]
[1731369254605,0.64046302,88490.0,88476.0,0.03277]
[1731369254606,0.11422305,88481.0,88476.0,0.03277]
[1731369254949,0.16976584,88489.0,88476.0,0.0344818]
[1731369255147,0.16976584,88477.0,88476.0,0.0017118]
[1731369255348,0.81764318,88477.0,88476.0,0.0017118]
[1731369256572,0.7922684,88477.0,88476.0,0.0017118]
[1731369257014,0.79183042,88477.0,88476.0,0.0017118]
[1731369257205,0.70342013,88477.0,88476.0,0.0017118]
[1731369257403,0.64046302,88477.0,88476.0,0.0017118]
[1731369257699,0.6911945,88477.0,88476.0,0.0017118]
[1731369257945,0.63005693,88477.0,88476.0,0.0017118]
[1731369258471,0.62010774,88477.0,88476.0,0.0017118]
[1731369258875,0.68096211,88477.0,88476.0,0.0017118]
[1731369259071,0.06085437,88477.0,88476.0,0.0017118]
[1731369259662,0.62010774,88490.0,88476.0,0.0017118]
[1731369259901,0.62010774,88489.0,88477.0,0.0712]
[1731369260175,0.16976584,88488.0,88484.0,0.19247451]
[1731369260300,0.15790934,88488.0,88479.0,0.023]
[1731369260939,0.15214848,88488.0,88479.0,0.023]
[1731369261137,0.61391815,88489.0,88479.0,0.023]
[1731369261386,0.16976584,88518.0,88477.0,0.0482]
[1731369261387,0.61391815,88508.0,88487.0,0.005]
[1731369261593,0.61391815,88508.0,88485.0,0.0756]
[1731369261594,0.61391815,88508.0,88491.0,0.023]
[1731369261795,0.61391815,88508.0,88487.0,0.023]
[1731369262003,0.61391815,88508.0,88486.0,0.005]
[1731369262205,0.61391815,88508.0,88485.0,0.0756]
[1731369262322,0.61391815,88508.0,88486.0,0.005]
[1731369262521,0.61391815,88508.0,88485.0,0.0806]
[1731369262735,0.61391815,88508.0,88485.0,0.0756]
[1731369263583,0.19247451,88493.0,88471.0,0.0832]
[1731369263816,0.19747451,88493.0,88471.0,0.0832]
[1731369263956,0.11422305,88489.0,88471.0,0.0832]
[1731369264602,0.16976584,88488.0,88471.0,0.0832]
[1731369264855,0.11422305,88487.0,88471.0,0.0832]
[1731369265453,0.16976584,88486.0,88471.0,0.0832]
[1731369265670,0.11422305,88485.0,88471.0,0.0832]
[1731369268108,0.61391815,88484.0,88472.0,0.05682429]
[1731369268304,0.0008966,88486.0,88479.0,0.023]
[1731369268515,0.16980584,88485.0,88482.0,0.07963457]
[1731369268682,4e-05,88485.0,88482.0,0.07963457]
[1731369269021,4e-05,88493.0,88481.0,0.023]
[1731369269265,0.16976584,88489.0,88481.0,0.023]
[1731369270060,0.11422305,88488.0,88476.0,0.0017118]
[1731369270307,4e-05,88493.0,88476.0,0.05854279]
[1731369270437,4e-05,88493.0,88476.0,0.0017118]
[1731369270623,4e-05,88493.0,88476.0,0.05854279]
[1731369271005,4e-05,88493.0,88476.0,0.0017118]
[1731369271393,4e-05,88493.0,88477.0,0.023]
[1731369273016,0.16976584,88478.0,88476.0,0.0017118]
[1731369273159,0.16976584,88487.0,88476.0,0.0017118]
[1731369273365,0.28398889,88487.0,88476.0,0.0017118]
[1731369273761,0.11422305,88487.0,88476.0,0.0017118]
[1731369274198,0.16976584,88486.0,88476.0,0.0017118]
[1731369274891,0.11422305,88487.0,88476.0,0.0017118]
[1731369275315,0.60905773,88492.0,88476.0,0.0017118]
[1731369275547,0.16976584,88485.0,88476.0,0.0017118]
[1731369275753,0.11422305,88491.0,88476.0,0.0017118]
[1731369275977,0.28398889,88484.0,88476.0,0.0017118]
[1731369276177,0.11422305,88484.0,88476.0,0.0017118]
[1731369276583,0.16976584,88483.0,88476.0,0.0017118]
[1731369276791,0.72328078,88482.0,88476.0,0.0017118]
[1731369277000,0.75360024,88482.0,88476.0,0.0017118]
[1731369277210,0.72328078,88482.0,88476.0,0.0017118]
[1731369279888,0.60905773,88481.0,88476.0,0.0017118]
[1731369281140,0.59967347,88481.0,88476.0,0.0017118]
[1731369281349,0.59298264,88481.0,88476.0,0.0017118]
[1731369281554,0.59302264,88481.0,88476.0,0.0017118]
[1731369282965,4e-05,88486.0,88480.0,0.19247451]
[1731369283215,0.16976584,88488.0,88484.0,0.005]
[1731369283425,0.16454011,88500.0,88484.0,0.005]
[1731369284947,0.16088228,88500.0,88480.0,0.19247451]
[1731369285155,0.16088228,88500.0,88484.0,0.005]
[1731369285621,0.16088228,88500.0,88480.0,0.19247451]
[1731369285622,0.53609711,88517.0,88502.0,0.005]
[1731369285832,0.16976584,88532.0,88515.0,0.19247451]
[1731369285833,0.53165876,88531.0,88515.0,0.19247451]
[1731369286683,0.51249943,88531.0,88515.0,0.19247451]
[1731369287783,0.50826839,88531.0,88514.0,0.005]
[1731369288468,0.5031716,88531.0,88514.0,0.005]
[1731369288671,0.49206734,88531.0,88514.0,0.01]
[1731369289796,0.49206734,88531.0,88514.0,0.005]
[1731369289993,0.49206734,88531.0,88514.0,0.01]
[1731369290644,0.49206734,88531.0,88514.0,0.005]
[1731369291070,0.49206734,88531.0,88514.0,0.01]
[1731369291281,0.49206734,88531.0,88530.0,0.25384973]
[1731369291483,0.16976584,88531.0,88530.0,0.005]
[1731369291683,0.16976584,88531.0,88508.0,0.0817]
[1731369291684,0.83923418,88531.0,88508.0,0.0817]
[1731369291884,0.60629039,88530.0,88509.0,0.16976584]
[1731369292040,0.16976584,88529.0,88508.0,0.0817]
[1731369292241,0.11422305,88528.0,88508.0,0.0817]
[1731369292459,0.16976584,88529.0,88493.0,0.0817]
[1731369292460,0.002,88523.0,88493.0,0.0817]
[1731369292665,0.11422305,88517.0,88493.0,0.0817]
[1731369292985,0.60829039,88516.0,88490.0,0.16976584]
[1731369293188,0.49206734,88515.0,88490.0,0.16976584]
[1731369293346,0.11422305,88514.0,88490.0,0.16976584]
[1731369293556,0.16976584,88511.0,88484.0,0.005]
[1731369293773,0.16976584,88501.0,88482.0,0.0817]
[1731369293983,0.11422305,88501.0,88483.0,0.16976584]
[1731369294300,0.11422305,88501.0,88482.0,0.0817]
[1731369294301,0.16976584,88500.0,88482.0,0.0817]
[1731369295086,0.11422305,88499.0,88482.0,0.0817]
[1731369295622,0.16976584,88511.0,88482.0,0.0817]
[1731369295800,0.16976584,88498.0,88482.0,0.0817]
[1731369296012,0.66183318,88498.0,88483.0,0.023]
[1731369297361,0.66183318,88498.0,88483.0,0.07913264]
[1731369297755,0.66183318,88498.0,88483.0,0.023]
[1731369298476,0.11422305,88497.0,88482.0,0.0817]
[1731369299132,0.49206734,88498.0,88482.0,0.0817]
[1731369299467,0.16976584,88497.0,88483.0,0.023]
[1731369300212,0.49206734,88498.0,88483.0,0.023]
[1731369300479,0.16976584,88497.0,88483.0,0.023]
[1731369301898,0.16267041,88497.0,88483.0,0.023]
[1731369302105,0.14634948,88497.0,88483.0,0.023]
[1731369302312,0.16976584,88511.0,88483.0,0.023]
[1731369302516,0.16976584,88499.0,88483.0,0.023]
[1731369302871,0.11422305,88510.0,88483.0,0.023]
[1731369303072,0.16976584,88502.0,88483.0,0.023]
[1731369303281,0.11422305,88501.0,88483.0,0.023]
[1731369304311,0.11137331,88501.0,88483.0,0.023]
[1731369304610,3.495,88500.0,88483.0,0.0247122]
[1731369305194,0.10637331,88501.0,88483.0,0.0247122]
[1731369305380,0.16976584,88502.0,88483.0,0.0247122]
[1731369305581,0.28398889,88502.0,88483.0,0.0247122]
[1731369307665,0.16976584,88511.0,88499.0,0.19247451]
[1731369307874,0.16976584,88501.0,88491.0,0.023]
[1731369308083,0.28398889,88511.0,88491.0,0.023]
[1731369309553,0.27967372,88511.0,88491.0,0.023]
[1731369309940,0.26317911,88511.0,88491.0,0.023]
[1731369310656,0.25984701,88511.0,88491.0,0.023]
[1731369311701,0.11422305,88510.0,88490.0,0.0492]
[1731369311949,0.11422305,88510.0,88487.0,0.005]
[1731369312158,0.16976584,88509.0,88487.0,0.19747451]
[1731369312426,0.11422305,88508.0,88487.0,0.19747451]
[1731369312791,0.11422305,88508.0,88487.0,0.005]
[1731369313009,0.11422305,88506.0,88483.0,0.0017122]
[1731369313252,0.11422305,88506.0,88483.0,0.17147804]
[1731369313606,0.11422305,88506.0,88485.0,0.13206491]
[1731369315052,0.16976584,88500.0,88483.0,0.0017122]
[1731369315248,0.11422305,88499.0,88483.0,0.0017122]
[1731369315806,0.16976584,88498.0,88483.0,0.0017122]
[1731369316030,0.11422305,88497.0,88483.0,0.0017122]
[1731369316302,0.16976584,88489.0,88483.0,0.0017122]
[1731369316543,0.11422305,88488.0,88483.0,0.0017122]
[1731369316763,0.11922305,88484.0,88483.0,0.0017122]
[1731369316991,0.18245799,88484.0,88483.0,0.0017122]
[1731369317692,0.26498028,88484.0,88483.0,0.0017122]
[1731369317895,0.27198028,88484.0,88483.0,0.0017122]
[1731369318133,0.23305799,88484.0,88483.0,0.0017122]
[1731369318350,0.2335238,88484.0,88483.0,0.0017122]
[1731369318560,0.2315238,88484.0,88483.0,0.0017122]
[1731369318983,0.2335238,88484.0,88483.0,0.0017122]
[1731369319183,0.2265238,88484.0,88483.0,0.0017122]
[1731369319340,0.2335238,88484.0,88483.0,0.0017122]
[1731369319742,0.2285238,88484.0,88483.0,0.0017122]
[1731369320538,0.2335238,88484.0,88483.0,0.0017122]
[1731369321171,0.28142401,88484.0,88483.0,0.0017122]
[1731369321567,0.2335238,88484.0,88483.0,0.0017122]
[1731369324429,0.2335238,88484.0,88452.0,0.16976584]
[1731369324430,0.012,88482.0,88452.0,0.16976584]
[1731369324629,0.012,88477.0,88452.0,0.16976584]
[1731369324840,0.007,88452.0,88451.0,0.0094988]
[1731369325211,0.007,88452.0,88426.0,0.16976584]
[1731369325212,0.11422305,88452.0,88426.0,0.16976584]
[1731369325396,0.11922305,88433.0,88426.0,0.16976584]
[1731369325538,0.09419653,88433.0,88426.0,0.16976584]
[1731369325737,0.09419653,88433.0,88415.0,0.0801]
[1731369325968,0.29197479,88433.0,88398.0,0.1293]
[1731369326322,0.35930131,88433.0,88399.0,0.16976584]
[1731369326494,0.19777826,88411.0,88409.0,0.16976584]
[1731369326706,0.005,88411.0,88410.0,0.16976584]
[1731369326840,0.11422305,88411.0,88399.0,0.16976584]
[1731369327048,0.11422305,88410.0,88396.0,0.0486324]
[1731369327678,0.16976584,88409.0,88396.0,0.0486324]
[1731369327880,0.11422305,88408.0,88396.0,0.0486324]
[1731369328411,0.10449703,88408.0,88396.0,0.0486324]
[1731369329196,0.11422305,88405.0,88396.0,0.0034624]
[1731369329398,0.002,88424.0,88396.0,0.0034624]
[1731369329399,0.005,88442.0,88397.0,0.20873301]
[1731369329602,0.16976584,88403.0,88398.0,0.0769]
[1731369329800,0.16976584,88414.0,88398.0,0.0769]
[1731369330064,0.11422305,88413.0,88398.0,0.0769]
[1731369331905,0.11011951,88413.0,88398.0,0.0769]
[1731369332287,0.16976584,88412.0,88404.0,0.19277826]
[1731369332494,0.16531716,88412.0,88404.0,0.19277826]
[1731369333026,0.01179171,88424.0,88415.0,0.005]
[1731369333027,0.00723733,88424.0,88415.0,0.005]
[1731369333229,0.16976584,88448.0,88415.0,0.005]
[1731369333230,0.16976584,88420.0,88419.0,0.19277826]
[1731369333437,0.16976584,88448.0,88420.0,0.1292]
[1731369333639,0.16976584,88423.0,88420.0,0.1292]
[1731369333990,0.16976584,88448.0,88420.0,0.1292]
[1731369336027,0.16976584,88376.0,88373.0,0.0809]
[1731369336233,0.005,88384.0,88374.0,0.16976584]
[1731369336448,0.005,88383.0,88367.0,0.045186]
[1731369336662,0.005,88388.0,88367.0,0.045186]
[1731369336869,0.005,88390.0,88367.0,0.045186]
[1731369337698,0.0527,88408.0,88367.0,0.045186]
[1731369337699,0.005,88384.0,88367.0,0.045186]
[1731369338176,0.005,88384.0,88367.0,0.040186]
[1731369338508,0.005,88384.0,88361.0,0.0034624]
[1731369338716,0.11422305,88379.0,88361.0,0.0034624]
[1731369338926,0.11422305,88379.0,88362.0,0.005]
[1731369339839,0.11422305,88379.0,88367.0,0.0008571]
[1731369346009,0.11422305,88378.0,88367.0,0.0008571]
[1731369346739,0.16976584,88377.0,88367.0,0.0008571]
[1731369346908,0.11422305,88376.0,88367.0,0.0008571]
[1731369347089,0.16976584,88375.0,88367.0,0.0008571]
[1731369347292,0.11422305,88374.0,88367.0,0.0008571]
[1731369349734,0.14262194,88374.0,88367.0,0.0008571]
[1731369349935,0.11422305,88374.0,88367.0,0.0008571]
[1731369351045,0.11422305,88371.0,88367.0,0.0008571]
[1731369356227,0.0835938,88371.0,88367.0,0.0008571]
[1731369356491,0.07593196,88371.0,88367.0,0.0008571]
[1731369359866,0.07287785,88371.0,88367.0,0.0008571]
[1731369359995,0.06917509,88371.0,88367.0,0.0008571]
[1731369361247,0.05958517,88371.0,88367.0,0.0008571]
[1731369362048,0.16976584,88381.0,88367.0,0.0008571]
[1731369362250,0.11422305,88380.0,88367.0,0.0008571]
[1731369362884,0.10598265,88380.0,88367.0,0.0008571]
[1731369363710,0.0017086,88379.0,88367.0,0.0008571]
[1731369364003,0.11422305,88378.0,88367.0,0.0008571]
[1731369365931,0.6879,88377.0,88367.0,0.0008571]
[1731369366167,0.11422305,88376.0,88367.0,0.0008571]
[1731369367864,0.16976584,88371.0,88367.0,0.0008571]
[1731369368084,0.80212305,88370.0,88367.0,0.0008571]
[1731369370889,0.16976584,88369.0,88367.0,0.0008571]
[1731369371060,0.11422305,88368.0,88367.0,0.0008571]
[1731369371903,0.80212305,88368.0,88367.0,0.0008571]
[1731369372691,0.89750601,88368.0,88367.0,0.0008571]
[1731369377690,0.6870429,88367.0,88361.0,0.0034624]
[1731369377889,0.10963464,88366.0,88361.0,0.0034624]
[1731369378297,0.6870429,88367.0,88361.0,0.0034624]
[1731369378552,0.79830927,88367.0,88361.0,0.0034624]
[1731369379414,0.16976584,88366.0,88361.0,0.0034624]
[1731369379577,0.67306431,88390.0,88379.0,0.005]
[1731369379791,0.16152024,88400.0,88395.0,0.005]
[1731369380151,0.16152024,88400.0,88381.0,0.0464]
[1731369380152,0.16637105,88409.0,88408.0,0.01]
[1731369380294,0.03827105,88409.0,88408.0,0.0564]
[1731369380500,0.65603552,88445.0,88416.0,0.005]
[1731369380723,0.16479349,88423.0,88418.0,0.13241987]
[1731369380929,0.16885549,88432.0,88425.0,0.005]
[1731369381128,0.16885549,88432.0,88431.0,0.13241987]
[1731369381454,0.64902776,88447.0,88431.0,0.13241987]
[1731369381768,0.16976584,88439.0,88431.0,0.13241987]
[1731369381947,0.64902776,88446.0,88431.0,0.13241987]
[1731369382151,0.16976584,88445.0,88438.0,0.13241987]
[1731369382356,0.11422305,88444.0,88419.0,0.005]
[1731369382494,0.11422305,88444.0,88420.0,0.16976584]
[1731369382696,0.11422305,88444.0,88415.0,0.13241987]
[1731369383009,0.11422305,88444.0,88417.0,0.16976584]
[1731369383192,0.16976584,88436.0,88414.0,0.0794]
[1731369383393,0.11422305,88435.0,88414.0,0.0794]
[1731369383643,0.64902776,88434.0,88414.0,0.0794]
[1731369384045,0.16976584,88432.0,88420.0,0.19287255]
[1731369384266,0.16976584,88445.0,88420.0,0.19287255]
[1731369384267,0.16976584,88433.0,88424.0,0.005]
[1731369384476,0.16976584,88433.0,88420.0,0.19287255]
[1731369384828,0.11422305,88432.0,88414.0,0.0794]
[1731369385499,0.64902776,88431.0,88414.0,0.0794]
[1731369385635,0.11422305,88430.0,88414.0,0.0794]
[1731369386790,0.10158254,88430.0,88414.0,0.0794]
[1731369387027,0.10158254,88430.0,88403.0,0.01]
[1731369387226,0.64902776,88429.0,88403.0,0.005]
[1731369387463,0.16976584,88424.0,88399.0,0.0816]
[1731369387665,0.11422305,88423.0,88399.0,0.0816]
[1731369388453,0.16976584,88414.0,88390.0,0.005]
[1731369388633,0.64902776,88428.0,88399.0,0.16976584]
[1731369389026,0.16423628,88422.0,88396.0,0.19287255]
[1731369389254,0.11422305,88421.0,88397.0,0.16976584]
[1731369389679,0.08699774,88421.0,88397.0,0.19651365]
[1731369389853,0.64902776,88428.0,88398.0,0.005]
[1731369390091,0.16976584,88424.0,88405.0,0.19287255]
[1731369390516,0.16976584,88424.0,88406.0,0.02900984]
[1731369390908,0.16108225,88424.0,88406.0,0.02900984]
[1731369391407,0.64902776,88428.0,88407.0,0.11922305]
[1731369391631,0.64902776,88432.0,88424.0,0.19287255]
[1731369391850,0.16976584,88433.0,88425.0,0.02900942]